[Event "EYCC Girls-U14 2019"]
[Site "Bratislava"]
[Date "2019.08.07"]
[Round "6.19"]
[White "Katter, Katharina"]
[Black "Karavitaki, Evaggelia"]
[Result "1/2-1/2"]
[ECO "B40"]
[WhiteElo "1824"]
[BlackElo "1681"]
[Annotator "NA"]
[PlyCount "45"]
[EventDate "2019.08.02"]
[EventType "swiss"]
[EventCountry "SVK"]
[SourceTitle "playchess.com"]
[Source "ChessBase"]
[SourceQuality "1"]
[TimeControl "40/5400+30:1800+30"]

1. e4 {[%emt 0:00:00]} c5 {[%emt 0:00:00]} 2. Nf3 {[%emt 0:00:00]} e6 {[%emt 0:00:00]} 3. g3 {[%emt 0:00:00]} Nc6 {[%emt 0:10:38]} 4. Bg2 {[%emt 0:00:10]} d6 {[%emt 0:03:35]} 5. O-O {[%emt 0:01:25]} Nf6 {[%emt 0:02:52]} 6. Qe2 {[%emt 0:00:46]} Be7 {[%emt 0:03:10]} 7. Rd1 {[%emt 0:01:57]} O-O {[%emt 0:01:15]} 8. c3 {[%emt 0:01:47]} a6 {[%emt 0:17:33]} 9. d4 {[%emt 0:04:37]} cxd4 {[%emt 0:00:58]} 10. cxd4 {[%emt 0:00:30]} b5 {[%emt 0:01:26]} 11. d5 {[%emt 0:26:27]} exd5 {[%emt 0:05:15]} 12. exd5 {[%emt 0:00:32]} Nb8 {[%emt 0:08:31]} 13. a4 {[%emt 0:12:49]} bxa4 {[%emt 0:06:38]} 14. Nc3 {[%emt 0:00:47]} Re8 {[%emt 0:01:18]} 15. h3 {[%emt 0:07:54]} Bb7 {[%emt 0:02:16]} 16. Be3 {[%emt 0:02:34]} Nbd7 {[%emt 0:02:00]} 17. Nh4 {[%emt 0:06:00]} Nb6 {[%emt 0:05:02]} 18. Qd3 {[%emt 0:04:22]} Rc8 {[%emt 0:02:33]} 19. Qd4 {[%emt 0:05:07]} Nc4 {[%emt 0:01:29]} 20. Nxa4 {[%emt 0:00:45]} Nd7 {[%emt 0:12:36]} 21. Nf5 {[%emt 0:06:04]} Bf6 {[%emt 0:00:23]} 22. Qd3 {[%emt 0:00:43]} Nxe3 {[%emt 0:01:54]} 23. Nxe3 {[%emt 0:01:14]} 1/2-1/2

[Event "EYCC Girls-U14 2019"]
[Site "Bratislava"]
[Date "2019.08.07"]
[Round "6.20"]
[White "Puia, Alexia-Teodora"]
[Black "Mihelic, Vesna"]
[Result "0-1"]
[ECO "D35"]
[WhiteElo "1601"]
[BlackElo "1844"]
[Annotator "NA"]
[PlyCount "68"]
[EventDate "2019.08.02"]
[EventType "swiss"]
[EventCountry "SVK"]
[SourceTitle "playchess.com"]
[Source "ChessBase"]
[SourceQuality "1"]
[TimeControl "40/5400+30:1800+30"]

1. d4 {[%emt 0:00:00]} d5 {[%emt 0:00:00]} 2. c4 {[%emt 0:00:00]} e6 {[%emt 0:00:00]} 3. Nc3 {[%emt 0:00:00]} Nf6 {[%emt 0:00:00]} 4. cxd5 {[%emt 0:00:00]} exd5 {[%emt 0:00:00]} 5. Bg5 {[%emt 0:00:00]} Nbd7 {[%emt 0:00:11]} 6. e3 {[%emt 0:00:11]} Be7 {[%emt 0:00:06]} 7. Bd3 {[%emt 0:00:17]} c6 {[%emt 0:00:18]} 8. Qc2 {[%emt 0:00:35]} Nf8 {[%emt 0:00:43]} 9. Nge2 {[%emt 0:02:16]} h6 {[%emt 0:01:25]} 10. Bf4 {[%emt 0:00:42]} Ne6 {[%emt 0:00:27]} 11. h3 {[%emt 0:01:37]} Nxf4 {[%emt 0:05:28]} 12. exf4 {[%emt 0:00:48]} Bd6 {[%emt 0:02:07]} 13. g4 {[%emt 0:01:08]} Bd7 {[%emt 0:05:37]} 14. O-O-O {[%emt 0:03:35]} Qc7 {[%emt 0:01:25]} 15. Rde1 {[%emt 0:01:42]} O-O-O {[%emt 0:00:28]} 16. Qd2 {[%emt 0:01:51]} Rde8 {[%emt 0:02:46]} 17. Kb1 {[%emt 0:04:40]} Kb8 {[%emt 0:04:22]} 18. Rc1 {[%emt 0:02:25]} Qd8 {[%emt 0:05:28]} 19. Ng3 {[%emt 0:04:52]} g6 {[%emt 0:02:22]} 20. Rce1 {[%emt 0:06:08]} Qc7 {[%emt 0:02:23]} 21. Nce2 {[%emt 0:03:15]} Re7 {[%emt 0:07:55]} 22. f5 {[%emt 0:03:09]} g5 {[%emt 0:01:25]} 23. h4 {[%emt 0:09:04]} Nxg4 {[%emt 0:16:54]} 24. hxg5 {[%emt 0:00:14]} Nxf2 {[%emt 0:00:11]} 25. Rxh6 {[%emt 0:00:28]} Rhe8 {[%emt 0:02:13]} 26. Rg1 {[%emt 0:04:29]} Nxd3 {[%emt 0:02:57]} 27. g6 {[%emt 0:09:35]} fxg6 {[%emt 0:05:09]} 28. fxg6 {[%emt 0:01:11]} Nf4 {[%emt 0:03:44]} 29. Nc3 {[%emt 0:09:50]} Nh3 {[%emt 0:01:33]} 30. Rxh3 {[%emt 0:02:52]} Bxh3 {[%emt 0:00:11]} 31. Qh6 {[%emt 0:00:37]} Bxg3 {[%emt 0:01:24]} 32. Qxh3 {[%emt 0:00:10]} Re1+ {[%emt 0:02:17]} 33. Rxe1 {[%emt 0:00:08]} Rxe1+ {[%emt 0:00:06]} 34. Kc2 {[%emt 0:00:07]} Re8 {[%emt 0:01:50]} 0-1

[Event "EYCC Girls-U14 2019"]
[Site "Bratislava"]
[Date "2019.08.07"]
[Round "6.21"]
[White "Johansson-Ohman, Linnea"]
[Black "Cornileau, Juliette"]
[Result "1/2-1/2"]
[ECO "D31"]
[WhiteElo "1529"]
[BlackElo "1805"]
[Annotator "NA"]
[PlyCount "71"]
[EventDate "2019.08.02"]
[EventType "swiss"]
[EventCountry "SVK"]
[SourceTitle "playchess.com"]
[Source "ChessBase"]
[SourceQuality "1"]
[TimeControl "40/5400+30:1800+30"]

1. c4 {[%emt 0:00:00]} e6 {[%emt 0:00:00]} 2. d4 {[%emt 0:00:47]} d5 {[%emt 0:00:00]} 3. Nc3 {[%emt 0:00:14]} c6 {[%emt 0:00:00]} 4. Nf3 {[%emt 0:00:12]} dxc4 {[%emt 0:00:00]} 5. e3 {[%emt 0:00:37]} b5 {[%emt 0:00:30]} 6. a4 {[%emt 0:00:48]} Bb4 {[%emt 0:00:42]} 7. Bd2 {[%emt 0:00:45]} a5 {[%emt 0:00:53]} 8. axb5 {[%emt 0:01:34]} Bxc3 {[%emt 0:00:36]} 9. Bxc3 {[%emt 0:02:18]} cxb5 {[%emt 0:00:08]} 10. b3 {[%emt 0:01:28]} Bb7 {[%emt 0:02:32]} 11. bxc4 {[%emt 0:01:34]} b4 {[%emt 0:00:11]} 12. Bd2 {[%emt 0:01:46]} Nf6 {[%emt 0:01:45]} 13. Bd3 {[%emt 0:03:15]} O-O {[%emt 0:01:43]} 14. O-O {[%emt 0:00:16]} Nc6 {[%emt 0:05:15]} 15. Qb3 {[%emt 0:04:35]} Qd7 {[%emt 0:12:35]} 16. Ra2 {[%emt 0:06:29]} Rfd8 {[%emt 0:05:07]} 17. Rfa1 {[%emt 0:03:15]} Qc7 {[%emt 0:04:14]} 18. Be2 {[%emt 0:09:04]} h6 {[%emt 0:16:24]} 19. h3 {[%emt 0:01:20]} Ne4 {[%emt 0:16:40]} 20. Bd3 {[%emt 0:15:37]} Nxd2 {[%emt 0:01:33]} 21. Nxd2 {[%emt 0:00:45]} Ne7 {[%emt 0:02:05]} 22. Be4 {[%emt 0:03:34]} Bxe4 {[%emt 0:03:20]} 23. Nxe4 {[%emt 0:00:05]} Nf5 {[%emt 0:03:57]} 24. Nd2 {[%emt 0:17:38]} Nd6 {[%emt 0:05:13]} 25. Rc2 {[%emt 0:03:12]} Rdc8 {[%emt 0:03:00]} 26. Rca2 {[%emt 0:05:02]} Nxc4 {[%emt 0:05:18]} 27. Nxc4 {[%emt 0:00:03]} Qxc4 {[%emt 0:00:08]} 28. Qxc4 {[%emt 0:00:25]} Rxc4 {[%emt 0:00:01]} 29. Rxa5 {[%emt 0:00:31]} Rxa5 {[%emt 0:01:24]} 30. Rxa5 {[%emt 0:00:04]} Rc1+ {[%emt 0:02:48]} 31. Kh2 {[%emt 0:00:03]} Kf8 {[%emt 0:00:49]} 32. Rb5 {[%emt 0:01:07]} Rb1 {[%emt 0:00:32]} 33. Rb7 {[%emt 0:04:49]} g6 {[%emt 0:01:05]} 34. Kg3 {[%emt 0:01:13]} Kg7 {[%emt 0:01:10]} 35. Kf3 {[%emt 0:02:06]} b3 {[%emt 0:02:09]} 36. g3 {[%emt 0:01:40]} 1/2-1/2

[Event "EYCC Girls-U14 2019"]
[Site "Bratislava"]
[Date "2019.08.07"]
[Round "6.22"]
[White "Lomaia, Diana"]
[Black "Eraslan, Yagmur"]
[Result "1-0"]
[ECO "D18"]
[WhiteElo "1807"]
[BlackElo "1651"]
[Annotator "NA"]
[PlyCount "67"]
[EventDate "2019.08.02"]
[EventType "swiss"]
[EventCountry "SVK"]
[SourceTitle "playchess.com"]
[Source "ChessBase"]
[SourceQuality "1"]
[TimeControl "40/5400+30:1800+30"]

1. d4 {[%emt 0:00:00]} d5 {[%emt 0:00:00]} 2. c4 {[%emt 0:00:00]} c6 {[%emt 0:00:00]} 3. Nf3 {[%emt 0:00:00]} Nf6 {[%emt 0:00:00]} 4. Nc3 {[%emt 0:00:05]} dxc4 {[%emt 0:00:13]} 5. a4 {[%emt 0:02:00]} Bf5 {[%emt 0:00:11]} 6. e3 {[%emt 0:01:22]} e6 {[%emt 0:01:00]} 7. Bxc4 {[%emt 0:00:49]} Bb4 {[%emt 0:05:51]} 8. O-O {[%emt 0:02:02]} Qc7 {[%emt 0:04:50]} 9. Qe2 {[%emt 0:03:48]} Ne4 {[%emt 0:04:26]} 10. Bd2 {[%emt 0:02:22]} Bxc3 {[%emt 0:06:48]} 11. Bxc3 {[%emt 0:10:21]} Nd7 {[%emt 0:06:24]} 12. Nd2 {[%emt 0:04:26]} Nb6 {[%emt 0:20:11]} 13. Bb3 {[%emt 0:07:54]} Nd5 {[%emt 0:06:41]} 14. Nxe4 {[%emt 0:01:11]} Bxe4 {[%emt 0:00:03]} 15. f3 {[%emt 0:01:04]} Bg6 {[%emt 0:01:13]} 16. e4 {[%emt 0:01:35]} Nxc3 {[%emt 0:01:41]} 17. bxc3 {[%emt 0:00:06]} e5 {[%emt 0:01:52]} 18. Rfd1 {[%emt 0:06:31]} O-O {[%emt 0:07:45]} 19. Kh1 {[%emt 0:00:37]} Rfd8 {[%emt 0:01:30]} 20. Rac1 {[%emt 0:02:23]} exd4 {[%emt 0:05:31]} 21. cxd4 {[%emt 0:00:28]} Qb6 {[%emt 0:01:15]} 22. Qc4 {[%emt 0:01:10]} Kf8 {[%emt 0:03:06]} 23. Rb1 {[%emt 0:12:27]} Rac8 {[%emt 0:01:38]} 24. Ba2 {[%emt 0:00:43]} Qc7 {[%emt 0:00:26]} 25. Qb4+ {[%emt 0:02:07]} c5 {[%emt 0:01:54]} 26. dxc5 {[%emt 0:01:14]} Rxd1+ {[%emt 0:00:34]} 27. Rxd1 {[%emt 0:00:02]} Qxc5 {[%emt 0:00:35]} 28. Qxb7 {[%emt 0:01:39]} a5 {[%emt 0:04:16]} 29. h3 {[%emt 0:02:08]} f6 {[%emt 0:01:17]} 30. Qb3 {[%emt 0:02:14]} Qc2 {[%emt 0:05:31]} 31. Qg8+ {[%emt 0:00:45]} Ke7 {[%emt 0:00:02]} 32. Qxg7+ {[%emt 0:00:42]} Ke8 {[%emt 0:00:06]} 33. Qg8+ {[%emt 0:00:36]} Ke7 {[%emt 0:00:12]} 34. Qe6+ {[%emt 0:00:15]} 1-0

[Event "EYCC Girls-U14 2019"]
[Site "Bratislava"]
[Date "2019.08.07"]
[Round "6.23"]
[White "Zvereva, Margarita"]
[Black "Lorente Serrano, Rosa Adela"]
[Result "0-1"]
[ECO "A48"]
[WhiteElo "1693"]
[BlackElo "1788"]
[Annotator "NA"]
[PlyCount "140"]
[EventDate "2019.08.02"]
[EventType "swiss"]
[EventCountry "SVK"]
[SourceTitle "playchess.com"]
[Source "ChessBase"]
[SourceQuality "1"]
[TimeControl "40/5400+30:1800+30"]

1. d4 {[%emt 0:00:00]} Nf6 {[%emt 0:00:00]} 2. Nf3 {[%emt 0:00:00]} g6 {[%emt 0:00:31]} 3. Nbd2 {[%emt 0:00:00]} Bg7 {[%emt 0:03:28]} 4. e4 {[%emt 0:00:06]} d6 {[%emt 0:00:16]} 5. Bd3 {[%emt 0:00:54]} O-O {[%emt 0:00:31]} 6. O-O {[%emt 0:00:15]} Nc6 {[%emt 0:04:10]} 7. c3 {[%emt 0:01:09]} e5 {[%emt 0:01:23]} 8. d5 {[%emt 0:02:04]} Ne7 {[%emt 0:00:15]} 9. h3 {[%emt 0:04:03]} h6 {[%emt 0:02:46]} 10. Re1 {[%emt 0:07:45]} Ne8 {[%emt 0:01:06]} 11. Nf1 {[%emt 0:03:22]} f5 {[%emt 0:00:49]} 12. exf5 {[%emt 0:05:01]} gxf5 {[%emt 0:00:55]} 13. Bc4 {[%emt 0:11:08]} Ng6 {[%emt 0:10:20]} 14. Ng3 {[%emt 0:10:15]} Nf6 {[%emt 0:05:41]} 15. Qc2 {[%emt 0:06:56]} e4 {[%emt 0:07:55]} 16. Nd4 {[%emt 0:03:35]} Ne5 {[%emt 0:01:00]} 17. Qb3 {[%emt 0:03:41]} Nxc4 {[%emt 0:05:44]} 18. Qxc4 {[%emt 0:00:06]} Nh7 {[%emt 0:00:31]} 19. Nh5 {[%emt 0:02:22]} Qe7 {[%emt 0:03:52]} 20. Nf4 {[%emt 0:06:27]} Rf7 {[%emt 0:08:38]} 21. Nfe6 {[%emt 0:05:48]} Bxe6 {[%emt 0:02:28]} 22. Nxe6 {[%emt 0:04:59]} Nf8 {[%emt 0:01:32]} 23. Nxg7 {[%emt 0:03:15]} Kxg7 {[%emt 0:00:11]} 24. f3 {[%emt 0:06:18]} Qh4 {[%emt 0:06:50]} 25. Be3 {[%emt 0:01:13]} Re8 {[%emt 0:00:25]} 26. Bf2 {[%emt 0:02:07]} Qg5 {[%emt 0:00:34]} 27. Qd4+ {[%emt 0:02:12]} Kh7 {[%emt 0:00:26]} 28. h4 {[%emt 0:06:29]} Qg6 {[%emt 0:00:23]} 29. f4 {[%emt 0:00:49]} Rg7 {[%emt 0:00:22]} 30. g3 {[%emt 0:00:19]} Qg4 {[%emt 0:00:15]} 31. Kh2 {[%emt 0:01:01]} Nd7 {[%emt 0:02:37]} 32. b4 {[%emt 0:01:34]} Reg8 {[%emt 0:03:25]} 33. Rg1 {[%emt 0:00:44]} Qf3 {[%emt 0:01:00]} 34. Qe3 {[%emt 0:00:08]} Qh5 {[%emt 0:00:59]} 35. Rae1 {[%emt 0:00:50]} Nf6 {[%emt 0:00:14]} 36. Qe2 {[%emt 0:00:32]} Qxe2 {[%emt 0:01:07]} 37. Rxe2 {[%emt 0:00:01]} Nxd5 {[%emt 0:00:08]} 38. Bd4 {[%emt 0:00:42]} Rg4 {[%emt 0:00:32]} 39. Rf2 {[%emt 0:00:38]} Kg6 {[%emt 0:02:02]} 40. a3 {[%emt 0:00:00]} Kf7 {[%emt 0:00:00]} 41. c4 {[%emt 0:04:49]} Ne7 {[%emt 0:01:36]} 42. Re2 {[%emt 0:03:52]} b6 {[%emt 0:01:58]} 43. c5 {[%emt 0:06:07]} Ke6 {[%emt 0:00:28]} 44. cxd6 {[%emt 0:01:39]} cxd6 {[%emt 0:00:09]} 45. Rc2 {[%emt 0:01:45]} Nd5 {[%emt 0:00:07]} 46. Bf2 {[%emt 0:01:05]} R4g7 {[%emt 0:01:18]} 47. Rgc1 {[%emt 0:03:52]} Rd7 {[%emt 0:03:08]} 48. Rc8 {[%emt 0:01:10]} Rdd8 {[%emt 0:03:01]} 49. Rxd8 {[%emt 0:00:14]} Rxd8 {[%emt 0:00:02]} 50. Kg2 {[%emt 0:00:29]} Nf6 {[%emt 0:00:21]} 51. Rc7 {[%emt 0:02:24]} Rd7 {[%emt 0:00:05]} 52. Rc8 {[%emt 0:00:42]} Ng4 {[%emt 0:00:43]} 53. Bd4 {[%emt 0:02:02]} Kd5 {[%emt 0:00:10]} 54. Bb2 {[%emt 0:01:10]} Re7 {[%emt 0:00:49]} 55. Kf1 {[%emt 0:01:00]} a5 {[%emt 0:04:11]} 56. bxa5 {[%emt 0:00:54]} bxa5 {[%emt 0:00:01]} 57. Ra8 {[%emt 0:00:34]} Rb7 {[%emt 0:00:32]} 58. Rxa5+ {[%emt 0:01:09]} Kc4 {[%emt 0:00:03]} 59. Bh8 {[%emt 0:00:26]} Kd3 {[%emt 0:01:17]} 60. Rd5+ {[%emt 0:02:59]} Ke3 {[%emt 0:00:06]} 61. Rxd6 {[%emt 0:00:56]} Kf3 {[%emt 0:00:22]} 62. Ke1 {[%emt 0:00:37]} e3 {[%emt 0:05:19]} 63. Kd1 {[%emt 0:01:17]} e2+ {[%emt 0:01:55]} 64. Kd2 {[%emt 0:00:12]} Re7 {[%emt 0:00:03]} 65. Ke1 {[%emt 0:01:01]} Nf2 {[%emt 0:02:30]} 66. Bc3 {[%emt 0:01:11]} Re3 {[%emt 0:00:09]} 67. Bd2 {[%emt 0:00:30]} Nd3+ {[%emt 0:00:59]} 68. Rxd3 {[%emt 0:00:10]} Rxd3 {[%emt 0:00:04]} 69. a4 {[%emt 0:00:09]} Rxd2 {[%emt 0:00:07]} 70. Kxd2 {[%emt 0:00:03]} Kf2 {[%emt 0:00:04] Ke1+} 0-1

[Event "EYCC Girls-U14 2019"]
[Site "Bratislava"]
[Date "2019.08.07"]
[Round "6.24"]
[White "Kiousi, Panagiota"]
[Black "Mikhailina, Elena"]
[Result "0-1"]
[ECO "E04"]
[WhiteElo "1895"]
[BlackElo "1689"]
[Annotator "NA"]
[PlyCount "132"]
[EventDate "2019.08.02"]
[EventType "swiss"]
[EventCountry "SVK"]
[SourceTitle "playchess.com"]
[Source "ChessBase"]
[SourceQuality "1"]
[TimeControl "40/5400+30:1800+30"]

1. d4 {[%emt 0:00:00]} d5 {[%emt 0:00:00]} 2. c4 {[%emt 0:00:00]} e6 {[%emt 0:00:00]} 3. Nf3 {[%emt 0:00:00]} Nf6 {[%emt 0:00:00]} 4. g3 {[%emt 0:00:00]} dxc4 {[%emt 0:00:00]} 5. Bg2 {[%emt 0:00:00]} Nc6 {[%emt 0:00:00]} 6. O-O {[%emt 0:01:53]} Rb8 {[%emt 0:00:28]} 7. a4 {[%emt 0:02:49]} b6 {[%emt 0:01:19]} 8. Nc3 {[%emt 0:07:07]} Bb7 {[%emt 0:11:46]} 9. e3 {[%emt 0:09:40]} Be7 {[%emt 0:11:43]} 10. Qe2 {[%emt 0:01:02]} Na5 {[%emt 0:08:05]} 11. Nd2 {[%emt 0:02:53]} Bxg2 {[%emt 0:15:40]} 12. Kxg2 {[%emt 0:00:21]} Nd5 {[%emt 0:08:15]} 13. e4 {[%emt 0:10:34]} Nb4 {[%emt 0:00:15]} 14. Nxc4 {[%emt 0:08:08]} Nb3 {[%emt 0:00:19]} 15. Rb1 {[%emt 0:00:26]} Nxd4 {[%emt 0:03:47]} 16. Qg4 {[%emt 0:00:17]} h5 {[%emt 0:01:08]} 17. Qd1 {[%emt 0:04:00]} c5 {[%emt 0:06:48]} 18. Be3 {[%emt 0:10:38]} Nbc6 {[%emt 0:11:59]} 19. f4 {[%emt 0:06:45]} Qd7 {[%emt 0:04:31]} 20. Qe1 {[%emt 0:01:41]} Nc2 {[%emt 0:03:37]} 21. Qf2 {[%emt 0:00:13]} Nxe3+ {[%emt 0:00:30]} 22. Nxe3 {[%emt 0:00:13]} Nd4 {[%emt 0:01:25]} 23. Rbe1 {[%emt 0:05:01]} Rd8 {[%emt 0:03:51]} 24. h3 {[%emt 0:04:09]} Bf6 {[%emt 0:01:51]} 25. Rd1 {[%emt 0:04:15]} Qc8 {[%emt 0:02:43]} 26. Kh2 {[%emt 0:02:08]} Be7 {[%emt 0:00:59]} 27. Nc4 {[%emt 0:05:38]} Qc7 {[%emt 0:01:09]} 28. Rde1 {[%emt 0:04:06]} O-O {[%emt 0:00:46]} 29. Ne3 {[%emt 0:01:26]} Bf6 {[%emt 0:00:31]} 30. g4 {[%emt 0:01:22]} hxg4 {[%emt 0:00:27]} 31. hxg4 {[%emt 0:03:38]} g5 {[%emt 0:00:06]} 32. e5 {[%emt 0:00:49]} gxf4 {[%emt 0:00:25]} 33. exf6 {[%emt 0:03:02]} fxe3+ {[%emt 0:00:08]} 34. Qg3 {[%emt 0:00:03]} Qxg3+ {[%emt 0:00:50]} 35. Kxg3 {[%emt 0:00:04]} Nc2 {[%emt 0:00:48]} 36. Re2 {[%emt 0:01:27]} Rd2 {[%emt 0:00:06]} 37. Rxd2 {[%emt 0:01:16]} exd2 {[%emt 0:00:04]} 38. Kf2 {[%emt 0:00:39]} Rd8 {[%emt 0:01:07]} 39. Rd1 {[%emt 0:00:09]} Kh7 {[%emt 0:00:56]} 40. Ne4 {[%emt 0:00:00]} Rd4 {[%emt 0:00:00]} 41. Kf3 {[%emt 0:03:24]} Rd3+ {[%emt 0:10:37]} 42. Kf2 {[%emt 0:04:59]} Ne3 {[%emt 0:02:56]} 43. Rxd2 {[%emt 0:03:13]} Rxd2+ {[%emt 0:00:33]} 44. Nxd2 {[%emt 0:00:07]} Nxg4+ {[%emt 0:00:03]} 45. Kf3 {[%emt 0:00:18]} Nxf6 {[%emt 0:00:12]} 46. Nc4 {[%emt 0:00:04]} Nd5 {[%emt 0:00:43]} 47. Ke4 {[%emt 0:01:10]} f6 {[%emt 0:01:36]} 48. a5 {[%emt 0:01:15]} Kg6 {[%emt 0:00:53]} 49. Nd6 {[%emt 0:00:41]} Nb4 {[%emt 0:03:19]} 50. Nc8 {[%emt 0:01:40]} bxa5 {[%emt 0:00:37]} 51. Nxa7 {[%emt 0:00:08]} f5+ {[%emt 0:00:30]} 52. Ke3 {[%emt 0:01:20]} Kg5 {[%emt 0:00:39]} 53. Nb5 {[%emt 0:00:26]} f4+ {[%emt 0:01:16]} 54. Ke2 {[%emt 0:01:42]} Kg4 {[%emt 0:00:48]} 55. Nc3 {[%emt 0:00:20]} f3+ {[%emt 0:01:01]} 56. Kf1 {[%emt 0:01:33]} Nd3 {[%emt 0:01:58]} 57. Nd1 {[%emt 0:00:58]} Kf4 {[%emt 0:00:16]} 58. b3 {[%emt 0:01:16]} Nc1 {[%emt 0:00:30]} 59. Nb2 {[%emt 0:00:17]} Nxb3 {[%emt 0:00:13]} 60. Kf2 {[%emt 0:00:20]} e5 {[%emt 0:00:29]} 61. Nd3+ {[%emt 0:00:16]} Ke4 {[%emt 0:00:28]} 62. Ne1 {[%emt 0:00:22]} a4 {[%emt 0:00:57]} 63. Nxf3 {[%emt 0:00:07]} a3 {[%emt 0:00:04]} 64. Ne1 {[%emt 0:00:14]} a2 {[%emt 0:00:05]} 65. Nc2 {[%emt 0:00:05]} a1=Q {[%emt 0:00:09]} 66. Nxa1 {[%emt 0:00:10]} Nxa1 {[%emt 0:00:06]} 0-1

[Event "EYCC Girls-U14 2019"]
[Site "Bratislava"]
[Date "2019.08.08"]
[Round "7.1"]
[White "Allahverdiyeva, Ayan"]
[Black "Nur-Mukhametova, Alisa"]
[Result "1/2-1/2"]
[ECO "B81"]
[WhiteElo "2114"]
[BlackElo "2132"]
[Annotator "NA"]
[PlyCount "68"]
[EventDate "2019.08.02"]
[EventType "swiss"]
[EventCountry "SVK"]
[SourceTitle "playchess.com"]
[Source "ChessBase"]
[SourceQuality "1"]
[TimeControl "40/5400+30:1800+30"]

1. e4 {[%emt 0:00:50]} c5 {[%emt 0:00:00]} 2. Nf3 {[%emt 0:04:53]} e6 {[%emt 0:00:00]} 3. d4 {[%emt 0:00:05]} cxd4 {[%emt 0:00:21]} 4. Nxd4 {[%emt 0:00:04]} Nf6 {[%emt 0:00:13]} 5. Nc3 {[%emt 0:00:05]} d6 {[%emt 0:00:08]} 6. g4 {[%emt 0:00:32]} h6 {[%emt 0:00:11]} 7. Rg1 {[%emt 0:00:26]} Nc6 {[%emt 0:00:48]} 8. Be3 {[%emt 0:00:51]} Be7 {[%emt 0:03:16]} 9. Qf3 {[%emt 0:01:39]} Nxd4 {[%emt 0:09:51]} 10. Bxd4 {[%emt 0:00:57]} e5 {[%emt 0:01:18]} 11. Be3 {[%emt 0:06:26]} Be6 {[%emt 0:04:49]} 12. Bb5+ {[%emt 0:12:57]} Nd7 {[%emt 0:02:53]} 13. Ba4 {[%emt 0:05:31]} O-O {[%emt 0:07:32]} 14. O-O-O {[%emt 0:03:12]} Nb6 {[%emt 0:08:36]} 15. Bb3 {[%emt 0:10:08]} Nc4 {[%emt 0:01:39]} 16. Bxc4 {[%emt 0:00:15]} Bxc4 {[%emt 0:00:12]} 17. g5 {[%emt 0:00:02]} Bxg5 {[%emt 0:09:53]} 18. Bxg5 {[%emt 0:02:59]} hxg5 {[%emt 0:00:30]} 19. Qh5 {[%emt 0:00:45]} f6 {[%emt 0:09:11]} 20. h4 {[%emt 0:06:23]} Qe8 {[%emt 0:05:43]} 21. Qg4 {[%emt 0:07:01]} Be6 {[%emt 0:00:53]} 22. Qg3 {[%emt 0:02:15]} g4 {[%emt 0:10:05]} 23. f3 {[%emt 0:01:52]} Qc6 {[%emt 0:00:57]} 24. fxg4 {[%emt 0:00:43]} b5 {[%emt 0:00:46]} 25. g5 {[%emt 0:07:46]} f5 {[%emt 0:04:13]} 26. g6 {[%emt 0:03:07]} fxe4 {[%emt 0:04:15]} 27. Qg5 {[%emt 0:06:08]} Rf5 {[%emt 0:00:51]} 28. Qe7 {[%emt 0:00:05]} d5 {[%emt 0:07:03]} 29. Rgf1 {[%emt 0:06:09]} Re8 {[%emt 0:00:58]} 30. Qxa7 {[%emt 0:00:02]} Ra8 {[%emt 0:01:23]} 31. Qe7 {[%emt 0:00:43]} Re8 {[%emt 0:00:06]} 32. Qa7 {[%emt 0:01:44]} Ra8 {[%emt 0:00:24]} 33. Qe7 {[%emt 0:00:36]} Re8 {[%emt 0:00:20]} 34. Qa7 {[%emt 0:01:08]} Ra8 {[%emt 0:04:24]} 1/2-1/2

[Event "EYCC Girls-U14 2019"]
[Site "Bratislava"]
[Date "2019.08.08"]
[Round "7.2"]
[White "Zeliantsova, Kseniya"]
[Black "Roebers, Eline"]
[Result "0-1"]
[ECO "B40"]
[WhiteElo "1875"]
[BlackElo "2111"]
[Annotator "NA"]
[PlyCount "100"]
[EventDate "2019.08.02"]
[EventType "swiss"]
[EventCountry "SVK"]
[SourceTitle "playchess.com"]
[Source "ChessBase"]
[SourceQuality "1"]
[TimeControl "40/5400+30:1800+30"]

1. e4 {[%emt 0:00:00]} c5 {[%emt 0:00:00]} 2. Nf3 {[%emt 0:00:00]} e6 {[%emt 0:00:00]} 3. c4 {[%emt 0:00:00]} Nc6 {[%emt 0:00:32]} 4. Nc3 {[%emt 0:00:00]} Nd4 {[%emt 0:01:03]} 5. Nxd4 {[%emt 0:00:07]} cxd4 {[%emt 0:00:07]} 6. Ne2 {[%emt 0:00:04]} e5 {[%emt 0:00:45]} 7. d3 {[%emt 0:00:46]} g6 {[%emt 0:03:20]} 8. Ng3 {[%emt 0:00:48]} h5 {[%emt 0:01:25]} 9. Be2 {[%emt 0:04:17]} Bh6 {[%emt 0:01:30]} 10. Bxh6 {[%emt 0:12:08]} Nxh6 {[%emt 0:01:29]} 11. Qd2 {[%emt 0:00:30]} d6 {[%emt 0:06:47]} 12. h3 {[%emt 0:01:27]} Kf8 {[%emt 0:09:06]} 13. Qb4 {[%emt 0:09:46]} Kg7 {[%emt 0:07:09]} 14. O-O {[%emt 0:28:37]} h4 {[%emt 0:17:01]} 15. Nh1 {[%emt 0:02:16]} g5 {[%emt 0:04:55]} 16. f3 {[%emt 0:02:12]} Ng8 {[%emt 0:03:20]} 17. c5 {[%emt 0:02:03]} dxc5 {[%emt 0:06:54]} 18. Qxc5 {[%emt 0:00:04]} Qe7 {[%emt 0:00:30]} 19. Rac1 {[%emt 0:01:59]} b6 {[%emt 0:07:14]} 20. Qd5 {[%emt 0:04:44]} Bb7 {[%emt 0:01:45]} 21. Qb5 {[%emt 0:00:11]} Nf6 {[%emt 0:02:42]} 22. Nf2 {[%emt 0:01:22]} Nh5 {[%emt 0:03:04]} 23. Ng4 {[%emt 0:00:14]} f6 {[%emt 0:01:39]} 24. Kf2 {[%emt 0:11:52]} Rhc8 {[%emt 0:02:03]} 25. a4 {[%emt 0:02:22]} Rc7 {[%emt 0:13:52]} 26. b3 {[%emt 0:04:40]} Rac8 {[%emt 0:01:07]} 27. Rc4 {[%emt 0:00:17]} Rxc4 {[%emt 0:01:57]} 28. bxc4 {[%emt 0:00:05]} Bc6 {[%emt 0:01:21]} 29. Qb3 {[%emt 0:00:36]} Qc7 {[%emt 0:01:15]} 30. Rc1 {[%emt 0:01:03]} Bd7 {[%emt 0:00:24]} 31. Rb1 {[%emt 0:01:36]} Nf4 {[%emt 0:00:35]} 32. Rb2 {[%emt 0:02:53]} Ne6 {[%emt 0:00:19]} 33. Bd1 {[%emt 0:00:54]} Nc5 {[%emt 0:00:22]} 34. Qa3 {[%emt 0:00:07]} Rb8 {[%emt 0:00:45]} 35. a5 {[%emt 0:01:55]} b5 {[%emt 0:00:33]} 36. Bc2 {[%emt 0:01:38]} a6 {[%emt 0:00:28]} 37. Kg1 {[%emt 0:01:19]} Be8 {[%emt 0:00:34]} 38. Bb1 {[%emt 0:00:40]} Rb7 {[%emt 0:00:34]} 39. Ba2 {[%emt 0:01:09]} bxc4 {[%emt 0:00:24]} 40. Bxc4 {[%emt 0:00:00]} Rxb2 {[%emt 0:00:00]} 41. Qxb2 {[%emt 0:01:19]} Bd7 {[%emt 0:14:43]} 42. f4 {[%emt 0:09:12]} Bxg4 {[%emt 0:04:53]} 43. hxg4 {[%emt 0:00:04]} gxf4 {[%emt 0:07:13]} 44. Qf2 {[%emt 0:00:07]} Nxe4 {[%emt 0:02:54]} 45. Qxh4 {[%emt 0:00:15]} Ng5 {[%emt 0:01:26]} 46. Qh5 {[%emt 0:04:32]} Qc6 {[%emt 0:01:24]} 47. Kf2 {[%emt 0:06:00]} e4 {[%emt 0:00:35]} 48. Qh1 {[%emt 0:00:44]} e3+ {[%emt 0:00:42]} 49. Ke2 {[%emt 0:00:14]} Qb7 {[%emt 0:00:43]} 50. Qe1 {[%emt 0:01:55]} f3+ {[%emt 0:00:22]} 0-1